[Event "85th Tata Steel Challengers 2023"]
[Site "Wijk aan Zee"]
[Date "2023.01.16"]
[Round "3.5"]
[White "L'Ami, Erwin"]
[Black "Yilmaz, Mustafa"]
[Result "0-1"]
[ECO "B93"]
[WhiteElo "2627"]
[BlackElo "2609"]
[Annotator "TA"]
[PlyCount "76"]
[EventDate "2023.01.10"]
[EventType "tourn"]
[EventCountry "NED"]
[SourceTitle "playchess.com"]
[Source "ChessBase"]
[SourceQuality "1"]
[TimeControl "40/6000+30:30/3000+30:900+30"]

{[%evp 14,76,0,4,0,-43,95,93,116,75,74,0,0,0,0,-9,-23,-64,-90,-82,-67,-83,-73,-87,-90,-91,-95,-103,-91,-87,-90,-93,-99,-87,-96,-93,-87,-157,-120,-110,-110,-123,-116,-109,-109,-242,-235,-837,-228,-344,0,-722,0,-358,-341,-386,-354,-508,-364,-465,-462,-447,-417,-403,-390]} 1. e4 {[%emt 0:00:04]} c5 {[%emt 0:00:20]} 2. Nf3 {[%emt 0:00:10]} d6 {[%emt 0:00:05]} 3. d4 {[%emt 0:00:10]} cxd4 {[%emt 0:00:06]} 4. Nxd4 {[%emt 0:00:08]} Nf6 {[%emt 0:00:04]} 5. Nc3 {[%emt 0:00:15]} a6 {[%emt 0:00:05]} 6. f4 {[%emt 0:00:11]} e5 {[%emt 0:04:42]} 7. Nf3 {[%emt 0:00:44]} Nbd7 {[%emt 0:01:02]} 8. a4 {[%emt 0:01:00]} Qc7 {[%emt 0:01:42] [#] B93: Sicilian Najdorf: 6 f4.} 9. g4 $146 {[%emt 0:01:30][%cal Bg2g4,Bg4g5][%mdl 32]} ({Predecessor:} 9. Bd3 Be7 10. O-O O-O 11. Kh1 Nc5 12. Qe1 Re8 13. fxe5 dxe5 14. Qg3 Be6 15. Qxe5 Bd6 16. Qg5 h6 17. Qh4 Ng4 18. Nd5 Qd8 19. Bf4 Bxd5 20. Qxg4 Be6 21. Qg3 Bxf4 22. Qxf4 Nxd3 23. cxd3 Qxd3 24. Rad1 Qc4 25. Nd4 {½-½ Smirin,I (2607)-Dominguez Perez,L (2758) Wch Rapid Moscow 2019 (6)}) 9... exf4 {[%emt 0:23:00]} (9... d5 $15 {keeps the upper hand.} 10. Nxd5 Nxd5 11. exd5 (11. Qxd5 exf4 12. Bd2 Be7 $17) 11... exf4) 10. g5 $16 {[%emt 0:05:59]} Nh5 {[%emt 0:04:48] White is better.} 11. Nd5 {[%emt 0:04:36]} Qd8 {[%emt 0:01:38]} 12. Nxf4 {[%emt 0:16:04]} (12. Bxf4 Nxf4 13. Nxf4 Be7 $11) (12. Nd4 $16 g6 13. Be2 (13. Bxf4 $2 Nxf4 14. Nxf4 Qxg5 $19)) 12... Nxf4 $11 {[%emt 0:00:57]} 13. Bxf4 {[%emt 0:00:26]} Nc5 {[%emt 0:02:42]} 14. Bc4 {[%emt 0:04:27]} Be7 {[%emt 0:08:08]} 15. e5 {[%emt 0:14:11][%cal Re5d6]} (15. Bd5 {simplifies} O-O 16. c3 Bg4 17. O-O) 15... Be6 {[%emt 0:07:38]} 16. exd6 {[%emt 0:15:54] [#] And now Qd4 would win.} Bxc4 {[%emt 0:00:35]} 17. Qd4 {[%emt 0:00:50]} Ne6 $1 {[%emt 0:05:59][%csl LRd4,LRg5]} (17... Qa5+ 18. Bd2 Qd8 19. Qxg7 $16 (19. Qxc5 Rc8 $16) (19. Qxc4 Bxd6 20. O-O-O O-O $11)) 18. Qxc4 {[%emt 0:01:03]} Bxd6 {[%emt 0:04:31]} 19. Bxd6 {[%emt 0:02:38]} Qxd6 {[%emt 0:00:09]} 20. Rd1 {[%emt 0:00:34]} Qe7 {[%emt 0:05:32]} (20... Qb6 {keeps more tension.} 21. Qb3 Qa5+ 22. Kf2 Rc8) 21. O-O {[%emt 0:02:26]} Nxg5 {[%emt 0:17:31]} 22. Nxg5 {[%emt 0:09:31]} Qxg5+ {[%emt 0:00:02]} 23. Kh1 {[%emt 0:00:17][%csl Gf1][%cal Rc4f7] [#]} O-O {[%emt 0:00:05]} 24. Rd7 {[%emt 0:00:33][%cal Rd7f7]} b5 {[%emt 0:00:56]} 25. Qd4 {[%emt 0:08:03]} ({Better is} 25. axb5 axb5 26. Qb3) 25... Qg6 {[%emt 0:03:23]} 26. axb5 {[%emt 0:03:23]} axb5 {[%emt 0:00:13]} 27. Qd5 {[%emt 0:00:17][%cal Od7f7] Rdxf7! would be deadly.} Rae8 {[%emt 0:04:45]} (27... Qxc2 {gets mated.} 28. Rdxf7 (28. Rfxf7 Kh8 $17) 28... h6 29. Rxf8+ Kh7 30. Rxa8 Kg6 31. Rg1+) 28. c3 {[%emt 0:05:16]} h6 {[%emt 0:10:32]} 29. Rb7 {[%emt 0:04:55]} (29. Qf5 $17 {keeps fighting.}) 29... Re2 $40 {[%emt 0:00:12][%mdl 128] Black attacks with force.} 30. Rxb5 $2 {[%emt 0:01:59]} (30. b4) 30... Qc2 $2 {[%emt 0:00:02]} (30... Rfe8 {[%cal Oe2f2]} 31. Qf3 Rd2) 31. Kg1 {[%emt 0:03:26] Dodges Rf2} (31. Qh5 $142) 31... Qg6+ $2 {[%emt 0:01:19]} (31... Rxh2 32. Rb4 Rd2) 32. Kh1 {[%emt 0:00:07]} Qc2 {[%emt 0:00:05]} (32... Rfe8 $142 {[%cal Oe2f2] ( -> ...Rf2!)} 33. Qf3 Rd2) 33. Kg1 {[%emt 0:00:06] Wards off Rf2} Rxh2 {[%emt 0:01:06] ...Rd2 is the strong threat.} 34. Qf3 {[%emt 0:01:03]} Rd2 {[%emt 0:01:08] Strongly threatening ...Qg6+.} 35. Rf5 {[%emt 0:00:46]} (35. Rb4 $142) 35... Qb3 {[%emt 0:01:36]} ({Weaker is} 35... Qxb2 36. Rxf7 Qb6+ 37. Kh1 Rxf7 38. Qxf7+ Kh7 39. Qf5+ Qg6 40. Qxg6+ Kxg6 41. Rg1+ Kf6 42. Rf1+ Ke7 43. Re1+ Kd7 44. Re5 $17) 36. Rf4 {[%emt 0:00:40]} Rxb2 {[%emt 0:00:50]} ({Worse is} 36... Qxb2 37. Rxf7 Qb6+ 38. Kh1 Rxf7 39. Qxf7+ Kh8 40. Qe8+ Kh7 41. Qe4+ Qg6 42. Qxg6+ Kxg6 43. Rg1+ Kf6 44. Rf1+ Kg6 45. Rg1+ Kf6 46. Rf1+ Kg6 $17) 37. Rb4 {[%emt 0:00:08]} Qa2 {[%emt 0:00:19]} 38. Rxb2 {[%emt 0:00:14]} Qxb2 {[%emt 0:00:02] Weighted Error Value: White=0.51/Black=0.73} 0-1

[Event "85th Tata Steel Challengers 2023"]
[Site "Wijk aan Zee"]
[Date "2023.01.16"]
[Round "3.6"]
[White "Beerdsen, Thomas"]
[Black "Pechac, Jergus"]
[Result "1/2-1/2"]
[ECO "C52"]
[WhiteElo "2515"]
[BlackElo "2637"]
[Annotator "TA"]
[PlyCount "71"]
[EventDate "2023.01.10"]
[EventType "tourn"]
[EventCountry "NED"]
[SourceTitle "playchess.com"]
[Source "ChessBase"]
[SourceQuality "1"]
[TimeControl "40/6000+30:30/3000+30:900+30"]

{[%evp 14,71,-19,-14,-14,-34,-35,-29,-27,-12,-14,-23,-34,-32,-25,-12,11,8,16,0,101,0,0,7,0,-8,166,145,203,193,235,110,81,72,160,142,249,29,14,19,19,27,25,0,23,31,29,0,0,0,0,0,0,-8,-8,-8,-8,-8,-8,-27]} 1. e4 {[%emt 0:00:04]} e5 {[%emt 0:00:12]} 2. Nf3 {[%emt 0:00:07]} Nc6 {[%emt 0:00:06]} 3. Bc4 {[%emt 0:00:06]} Bc5 {[%emt 0:00:09]} 4. b4 {[%emt 0:00:05]} Bxb4 {[%emt 0:00:09]} 5. c3 {[%emt 0:00:06]} Ba5 {[%emt 0:00:13]} 6. d4 {[%emt 0:00:10]} d6 {[%emt 0:00:51]} 7. Qb3 {[%emt 0:00:21]} Qd7 {[%emt 0:00:33]} 8. O-O {[%emt 0:00:32] now supersedes 8.dxe5.} Bb6 {[%emt 0:00:20] C52: Evans Gambit Accepted: 5 c3 Ba5.} 9. Nbd2 {[%emt 0:00:15]} (9. Bb5 $5 {[%cal Rd4d5]}) 9... Na5 {[%emt 0:00:32]} 10. Qc2 {[%emt 0:00:14]} f6 {[%emt 0:02:02] Black has an edge.} 11. a4 {[%emt 0:02:29]} Ne7 {[%emt 0:00:07]} 12. Ba2 {[%emt 0:13:33]} Nec6 {[%emt 0:01:09][%cal Re5d4]} 13. Ba3 {[%emt 0:06:46]} exd4 {[%emt 0:04:36] [#]} 14. cxd4 $146 {[%emt 0:05:26]} ({Predecessor:} 14. Nxd4 Bxd4 15. cxd4 Nxd4 16. Qd1 Ndc6 17. Nc4 Nxc4 18. Bxc4 a5 19. Qd2 Qe7 20. Rab1 {½-½ Enkalo,M (2342)-Ruiz Jarabo Pelayo,F (2290) W-Cup20 sf08 email 2015}) 14... Nxd4 {[%emt 0:04:20]} 15. Nxd4 {[%emt 0:01:12]} Bxd4 {[%emt 0:00:06]} 16. Rad1 {[%emt 0:04:19]} Qe7 {[%emt 0:10:45] [#]} (16... Nc6 $11 {keeps the balance.}) 17. e5 {[%emt 0:27:21]} fxe5 $11 {[%emt 0:02:31]} (17... Qxe5 18. Qxc7 Bd7 19. Rfe1 $18) 18. Nf3 {[%emt 0:01:00]} Nc6 {[%emt 0:02:40] Threatens to win with ...Bb6.} 19. Bd5 {[%emt 0:03:26]} Kd8 $2 {[%emt 0:11:47]} (19... Be6 $1 $11 {and Black is okay.} 20. Bxc6+ bxc6 21. Nxd4 (21. Qxc6+ Kf7 $15) 21... exd4 22. Qxc6+ Kf7) 20. Rfe1 $1 $18 {[%emt 0:17:33]} Qf6 {[%emt 0:00:06]} (20... Qd7 $16 {might work better.}) 21. Bxc6 {[%emt 0:01:55]} bxc6 {[%emt 0:00:11]} 22. Qxc6 {[%emt 0:00:57]} (22. Bxd6 $1 $18 {and the rest is easy.} cxd6 23. Nxd4) 22... Rb8 $16 {[%emt 0:00:05] aiming for ...Bb7.} 23. Rc1 {[%emt 0:01:21]} Bb6 {[%emt 0:15:53]} ({Better is} 23... Rb7) 24. Nxe5 {[%emt 0:06:53][%cal Oa4a5] White is more active.} Re8 {[%emt 0:00:23] [#]} (24... Qxf2+ $2 25. Kh1 $18) (24... Bh3 $16 {was worth a try.}) 25. Bxd6 $1 {[%emt 0:03:23][%mdl 512]} cxd6 $11 {[%emt 0:05:20] [#]} (25... Bxf2+ 26. Kh1 Rxe5 27. Bxc7+ Ke7 28. Rxe5+ Be6 29. Bxb8 Kf7 30. Rf1) 26. Nf7+ {[%emt 0:00:51][%mdl 64] Deflection} Qxf7 {[%emt 0:00:03]} 27. Qxd6+ {[%emt 0:04:13]} Qd7 {[%emt 0:00:07]} 28. Rxe8+ {[%emt 0:00:06]} Kxe8 {[%emt 0:00:03]} 29. Qxb8 {[%emt 0:00:07]} Kd8 {[%emt 0:02:05]} (29... Bxf2+ $2 30. Kh1 (30. Kf1 $2 Qd3+ 31. Kxf2 Qd2+ 32. Kf3 Qxc1 $19) 30... Kd8 31. Qb4 $18 (31. Qb3 Qe6 $18)) 30. Qf4 {[%emt 0:01:50] Strongly threatening Qf8+.} (30. Kh1 $5) 30... Qf5 {[%emt 0:00:41] Wards off Qf8+. The position is equal.} 31. Qg3 {[%emt 0:03:28]} g6 {[%emt 0:01:44]} 32. a5 {[%emt 0:02:02] The board is on fire.} Bxa5 {[%emt 0:03:58] A strong pair of Bishops.} 33. Qd6+ {[%emt 0:00:30]} Bd7 {[%emt 0:00:45] ...Bb6 is the strong threat.} 34. Qb8+ {[%emt 0:00:13]} Ke7 {[%emt 0:00:10] ...Bb6 would be deadly.} 35. Qxa7 {[%emt 0:00:10]} Qd5 {[%emt 0:06:45]} 36. Qc5+ {[%emt 0:02:48] Blacks defense is rewarded with a draw. A brilliant game!   Weighted Error Value: White=0.19 (very precise) /Black=0.25 (precise)} 1/2-1/2

[Event "85th Tata Steel Challengers 2023"]
[Site "Wijk aan Zee"]
[Date "2023.01.16"]
[Round "3.7"]
[White "Sindarov, Javokhir"]
[Black "Vaishali, Rameshbabu"]
[Result "1-0"]
[ECO "B30"]
[WhiteElo "2654"]
[BlackElo "2425"]
[Annotator "TA"]
[PlyCount "73"]
[EventDate "2023.01.10"]
[EventType "tourn"]
[EventCountry "NED"]
[SourceTitle "playchess.com"]
[Source "ChessBase"]
[SourceQuality "1"]
[TimeControl "40/6000+30:30/3000+30:900+30"]

{[%evp 12,73,13,0,0,-8,8,12,6,10,18,17,16,7,16,23,23,25,19,20,11,9,27,24,29,32,35,27,37,33,33,17,88,83,81,79,89,65,129,126,131,136,129,132,253,245,225,237,245,221,348,304,486,474,518,493,633,633,607,421,509,500,500,463]} 1. e4 {[%emt 0:00:03]} c5 {[%emt 0:00:39]} 2. Nf3 {[%emt 0:01:10]} Nc6 {[%emt 0:00:08]} 3. Bb5 {[%emt 0:00:56]} e6 {[%emt 0:00:06]} 4. O-O {[%emt 0:01:10]} Nge7 {[%emt 0:00:05]} 5. Re1 {[%emt 0:00:41]} a6 {[%emt 0:00:06]} 6. Bf1 {[%emt 0:00:12]} d5 {[%emt 0:00:06]} 7. d3 {[%emt 0:00:13]} d4 {[%emt 0:09:03] The main line 7...d4 scores better than 7...g6. B30: Sicilian: 2...Nc6 3 Bb5, lines without ...g6.} 8. e5 {[%emt 0:00:28]} Ng6 {[%emt 0:12:51]} 9. g3 {[%emt 0:00:08]} Qc7 {[%emt 0:02:01][%cal Rc6e5] The position is equal.} 10. Bg2 {[%emt 0:01:01]} Ngxe5 {[%emt 0:15:24]} 11. Nxe5 {[%emt 0:00:31]} Nxe5 {[%emt 0:00:02]} 12. Bf4 {[%emt 0:00:08]} Bd6 {[%emt 0:00:05]} 13. Qh5 {[%emt 0:00:07][%cal Rf4e5]} Ng6 {[%emt 0:00:05]} 14. Bxd6 {[%emt 0:00:04]} Qxd6 {[%emt 0:00:04]} 15. Nd2 {[%emt 0:00:07][%cal Bb1d2,Bd2e4,Be4c5,Bc5b3,Bb3a5,Ba5c4][%mdl 32]} O-O {[%emt 0:03:48]} 16. Ne4 $36 {[%emt 0:00:03][%csl LRc5,LRd6][%mdl 2048] White has some pressure.} Qc7 {[%emt 0:00:37]} 17. Qxc5 {[%emt 0:00:24]} Qxc5 {[%emt 0:00:10]} 18. Nxc5 {[%emt 0:00:04][%cal Oh2h4] [#]} Ra7 $146 {[%emt 0:07:09]} ({Predecessor:} 18... Rb8 19. a4 b6 20. Nb3 Rd8 21. f4 Ne7 22. a5 Bb7 23. Bxb7 Rxb7 24. axb6 Rxb6 {1-0 Navara,D (2676)-Lammens,T (2223) EU-Cup 37th Mayrhofen 2022 (1.2)}) 19. Nb3 {[%emt 0:53:25]} Rd8 $1 {[%emt 0:00:55]} 20. Na5 {[%emt 0:00:15]} Ne7 {[%emt 0:02:21]} 21. a4 {[%emt 0:01:39]} Nd5 {[%emt 0:19:02]} (21... Bd7 $11) 22. Bxd5 {[%emt 0:06:40] White stays focused until the end.} Rxd5 {[%emt 0:00:04]} 23. Nc4 {[%emt 0:00:05]} a5 {[%emt 0:03:05]} 24. Nb6 {[%emt 0:00:09][%csl LRc8,LRd5] White is more active.} Rc5 {[%emt 0:04:46] [#]} (24... Rd8 $1 $14) 25. Re4 $1 $16 {[%emt 0:00:58]} e5 {[%emt 0:02:47]} 26. Nxc8 {[%emt 0:08:03]} Rxc8 {[%emt 0:00:03]} 27. Rxe5 {[%emt 0:00:06][%mdl 4096] Endgame KRR-KRR} f6 {[%emt 0:00:13] [#]} (27... b6 $16) 28. Re7 $1 $18 {[%emt 0:02:05]} Rxc2 {[%emt 0:14:11]} 29. Rae1 {[%emt 0:00:21]} h5 {[%emt 0:02:14]} 30. Rd7 {[%emt 0:02:05] Black must now prevent Ree7.} Rxb2 {[%emt 0:00:14]} (30... Kf8 {might work better.} 31. Ree7 (31. Rxd4 b5 $14) 31... Rxb2) 31. Ree7 {[%emt 0:00:42]} (31. Rxd4 b6 $15) 31... Rb4 {[%emt 0:01:51]} (31... Kf8 $142 32. Rf7+ Ke8 33. Rfe7+ Kf8 34. Rf7+ (34. Rxg7 Rb4 $18) 34... Ke8 35. Rxg7 Ra6) 32. Rxg7+ {[%emt 0:00:10] White is clearly winning.} Kh8 {[%emt 0:00:03]} 33. h4 {[%emt 0:01:11]} Ra6 {[%emt 0:10:14]} 34. Rge7 {[%emt 0:00:07][%cal Rd7d8] Prevents Re6.} Ra8 {[%emt 0:00:07] Wards off Rd8+} 35. g4 {[%emt 0:00:16]} Rb6 {[%emt 0:01:51]} 36. Rh7+ {[%emt 0:00:50]} ({Weaker is} 36. Rxd4 Rb4 37. Rxb4 axb4 $16) 36... Kg8 {[%emt 0:00:01]} 37. Rxh5 {[%emt 0:00:19] Weighted Error Value: White=0.07 (flawless) /Black=0.32} 1-0

[Event "85th Tata Steel Challengers 2023"]
[Site "Wijk aan Zee"]
[Date "2023.01.17"]
[Round "4.1"]
[White "Roebers, Eline"]
[Black "Tabatabaei, M. Amin"]
[Result "1/2-1/2"]
[ECO "B60"]
[WhiteElo "2361"]
[BlackElo "2686"]
[Annotator "TA"]
[PlyCount "124"]
[EventDate "2023.01.10"]
[EventType "tourn"]
[EventCountry "NED"]
[SourceTitle "playchess.com"]
[Source "ChessBase"]
[SourceQuality "1"]
[TimeControl "40/6000+30:30/3000+30:900+30"]

{[%evp 11,124,22,61,25,24,22,60,62,58,12,19,18,20,0,0,-38,-12,-46,-33,-33,0,-6,-11,-2,-12,-3,0,-2,-12,-35,-29,-35,-35,-57,-61,-102,-96,-114,0,0,24,19,11,13,43,43,72,0,0,0,0,0,10,0,0,0,3,0,0,0,0,-27,-6,-14,-5,-6,0,0,0,0,0,0,0,0,0,0,0,0,0,0,20,0,0,0,17,0,0,0,0,0,94,53,61,0,0,0,0,0,0,0,82,0,68,0,8,0,0,0,0,0,0,0,0,0,39]} 1. e4 {[%emt 0:00:04]} c5 {[%emt 0:00:36]} 2. Nf3 {[%emt 0:00:12]} d6 {[%emt 0:00:15]} 3. d4 {[%emt 0:00:08]} cxd4 {[%emt 0:00:05]} 4. Nxd4 {[%emt 0:00:05]} Nf6 {[%emt 0:00:07]} 5. Nc3 {[%emt 0:00:04]} Nc6 {[%emt 0:00:26]} 6. Bg5 {[%emt 0:00:30]} Bd7 {[%emt 0:00:29]} 7. Nxc6 {[%emt 0:14:07] B60: Sicilian: Richter-Rauzer: Unusual Black 6th moves and 6...Bd7 without 7 Qd2.} bxc6 {[%emt 0:00:33]} 8. Bc4 {[%emt 0:07:09]} h6 {[%emt 0:00:39]} 9. Bxf6 {[%emt 0:06:14][%mdl 64] [#] Remove Defender. White is slightly better.} exf6 {[%emt 0:00:13] [#] Black is weak on the light squares} 10. Qd3 $146 {[%emt 0:05:11]} (10. Qh5 $14 {is more appropriate.} g6 11. Qf3) ({Predecessor:} 10. Qh5 g6 11. Qe2 Be7 12. O-O O-O 13. Rad1 Kg7 14. Kh1 f5 15. exf5 Bxf5 16. Rfe1 {0-1 Paravyan,D (2586)-Shevchenko,K (2649) MrDodgy Online Inv Gp-B 3rd blitz 2022 (2)}) 10... Be7 $11 {[%emt 0:13:47]} 11. O-O {[%emt 0:04:08]} O-O {[%emt 0:00:28]} 12. Ne2 {[%emt 0:06:49]} a5 {[%emt 0:02:13][%cal Of6f5]} 13. a4 {[%emt 0:05:42]} Rb8 {[%emt 0:06:28]} 14. Bb3 {[%emt 0:00:25] [#]} f5 $1 {[%emt 0:03:07][%mdl 64] Deflection} 15. exf5 {[%emt 0:02:30]} d5 {[%emt 0:00:11]} 16. c4 $1 {[%emt 0:05:15]} Qb6 {[%emt 0:03:38]} 17. Bc2 {[%emt 0:01:11]} Bf6 {[%emt 0:00:07][%cal Od5c4]} 18. cxd5 {[%emt 0:06:38]} cxd5 {[%emt 0:01:06][%cal Of8c8]} 19. Nc3 {[%emt 0:08:27]} d4 {[%emt 0:15:12]} 20. Nd5 {[%emt 0:03:07]} Qd6 {[%emt 0:00:15]} 21. Nxf6+ {[%emt 0:04:15]} Qxf6 {[%emt 0:00:11]} 22. Rfd1 {[%emt 0:00:04]} Rb4 {[%emt 0:00:36][%cal Of8c8][%mdl 1024] Black has compensation.} 23. Rac1 {[%emt 0:02:16]} Rc8 $1 {[%emt 0:04:37]} 24. b3 {[%emt 0:05:24]} Rcb8 {[%emt 0:17:26]} (24... Rc3 $17 25. Qd2 Bc6) 25. Qf3 {[%emt 0:06:47]} Qd6 {[%emt 0:01:30] Wards off Qd5} (25... Bc6 $5 {[%cal Rc6f3]} 26. Be4 Bxe4 27. Qxe4 Rxb3 $11) 26. Rd2 {[%emt 0:01:05]} Rc8 {[%emt 0:01:41]} 27. Rcd1 {[%emt 0:00:43]} Re8 {[%emt 0:12:34]} 28. Qg3 {[%emt 0:04:02]} Qf6 {[%emt 0:04:53]} 29. h3 {[%emt 0:04:28]} (29. Qc7 $16 Qe5 30. Qxe5 (30. Qxd7 $2 Qe1+ {[%mdl 64] Back Rank} 31. Rxe1 Rxe1#) 30... Rxe5 31. f3 (31. Rxd4 $2 Rxd4 32. Kf1 Rxd1+ 33. Bxd1 Bxf5 $19)) 29... Re5 {[%emt 0:03:42]} 30. Qf3 {[%emt 0:03:58]} (30. Rxd4 $2 {perishes.} Rxd4 31. Rd3 Re2 32. Rxd4 Qxd4 $19) 30... Bc6 {[%emt 0:06:29]} 31. Qg3 {[%emt 0:00:59]} Rc5 {[%emt 0:00:48]} 32. Re2 {[%emt 0:01:15]} (32. Qc7 {is interesting.} Re5 33. f4 Rc5 34. Re2) 32... Bd7 {[%emt 0:01:08]} 33. Qf3 {[%emt 0:00:58]} Bxf5 {[%emt 0:00:54]} 34. Bxf5 {[%emt 0:00:14]} (34. Re8+ {is more complex.} Kh7 35. Be4 Rb6 36. g4) 34... Rxf5 {[%emt 0:00:49]} 35. Qd3 {[%emt 0:01:30] Threatens to win with Re8+.} g6 {[%emt 0:00:46]} 36. Rdd2 {[%emt 0:01:17]} (36. Re8+ {seems wilder.} Kg7 37. Qc2 Rb6 38. Re4) 36... Kg7 {[%emt 0:01:39]} 37. Qc2 {[%emt 0:01:00] Wards off Rc5} h5 {[%emt 0:02:47]} 38. Rd3 {[%emt 0:00:38]} h4 {[%emt 0:00:15]} 39. Re4 {[%emt 0:00:31]} Re5 {[%emt 0:01:52]} 40. Qe2 {[%emt 0:00:33]} (40. Rexd4 Re1+ 41. Kh2 Rxd4 42. Rxd4 Qxd4 43. g4 hxg3+ 44. Kxg3 Qe5+ 45. Kg2 Qd5+ 46. Kg3 Rg1+ 47. Kf4 g5+ 48. Ke3 Re1+) (40. Rdxd4 Rxd4 41. Re3 Rxe3 42. fxe3 Rd5 $19) 40... Re6 {[%emt 0:04:42]} 41. Qg4 {[%emt 0:03:43]} Rxe4 {[%emt 0:06:52]} 42. Qxe4 {[%emt 0:00:44][%mdl 4096] Endgame KQR-KQR} Qd8 {[%emt 0:05:19]} 43. Qe5+ {[%emt 0:03:00]} Kg8 {[%emt 0:00:43]} 44. Qc5 {[%emt 0:01:09]} Kg7 {[%emt 0:02:35]} 45. Qe5+ {[%emt 0:00:08]} f6 {[%emt 0:00:46]} 46. Qc5 {[%emt 0:06:43]} (46. Qe4 $5 {[%cal Re4h4]}) 46... Kh6 {[%emt 0:01:52]} 47. Kf1 {[%emt 0:02:00]} g5 {[%emt 0:01:41]} 48. Kg1 {[%emt 0:01:54]} Kg6 {[%emt 0:00:06]} 49. Qc2 {[%emt 0:01:12]} Kf7 {[%emt 0:00:47]} 50. Qc5 {[%emt 0:00:52][%cal Of2f4]} Ke6 {[%emt 0:02:05] Inhibits f4.} (50... Kg7 $11) 51. Rd1 {[%emt 0:03:44] aiming for Qa7. White is much more active.} Kf7 {[%emt 0:00:59]} 52. Rd3 {[%emt 0:00:15]} (52. f4 $14) 52... Kg7 {[%emt 0:01:11]} 53. Kf1 {[%emt 0:00:46]} Kg6 {[%emt 0:00:20]} 54. Qc2 {[%emt 0:00:26]} Kh6 {[%emt 0:04:18]} 55. Qc5 {[%emt 0:00:36][%cal Of2f4]} Kh7 {[%emt 0:11:32]} (55... Kg7 $11 {remains equal.}) 56. Kg1 {[%emt 0:00:47]} (56. f4 $16) 56... Kg8 {[%emt 0:00:07]} (56... Kg7 $11) 57. Kf1 {[%emt 0:01:14]} (57. f4 $14) 57... Kf7 {[%emt 0:00:03] The position is equal.} 58. Kg1 {[%emt 0:02:32][%cal Of2f4]} (58. f4 {feels hotter.} Qb6 59. Qd5+ Qe6 60. Qxa5 Rxb3 61. Qc7+) 58... Qe7 {[%emt 0:02:28] Against f4} 59. Qd5+ {[%emt 0:04:04]} Qe6 {[%emt 0:05:39]} 60. Rxd4 {[%emt 0:01:10] And now Qxe6+ would win.} Qxd5 {[%emt 0:00:14]} 61. Rxd5 {[%emt 0:00:04]} Rxb3 {[%emt 0:00:05]} 62. Rxa5 {[%emt 0:00:10]} Rb1+ {[%emt 0:00:05] Weighted Error Value: White=0.13 (very precise) /Black=0.15 (very precise)} 1/2-1/2